fUSD/lending_fUSD_20251217
["ID","MTS","AMOUNT","RATE_DAILY","PERIOD"]
[398902177,1765983040999,-500.0,0.0001676,2]
[398902178,1765983041008,-473.0,0.00016783,2]
[398902179,1765983041019,-181.0,0.00016794,2]
[398902180,1765983041028,-500.0,0.00016795,2]
[398902181,1765983041037,-600.0,0.00016796,2]
[398902182,1765983041047,-181.0,0.00016813,2]
[398902183,1765983041056,-1680.0,0.00016822,2]
[398902184,1765983041066,-500.0,0.00016849,7]
[398902185,1765983041076,-500.0,0.00016849,7]
[398902186,1765983041087,-200.0,0.00016864,2]
[398902187,1765983041096,-4505.0,0.00016895,2]
[398902188,1765983041108,-574.12855637,0.00016897,2]
[398902189,1765983041118,-2112.0,0.00016897,2]
[398902190,1765983041127,-500.0,0.00016897,2]
[398902191,1765983041136,-481.46730423,0.00016899,2]
[398902192,1765983041145,-493.85888005,0.000169,2]
[398902193,1765983041155,-240.20808911,0.000169,2]
[398902194,1765983041164,-473.0,0.0001692,2]
[398902195,1765983041174,-151.12198165,0.0001692,2]
[398902196,1765983041183,-500.0,0.00016932,2]
[398902197,1765983041193,-204.63597997,0.00016939,2]
[398902198,1765983041202,-420.0,0.00016954,2]
[398902199,1765983041212,-420.0,0.00016954,2]
[398902200,1765983041221,-1000.0,0.00016957,2]
[398902201,1765983041230,-500.0,0.00016973,2]
[398902202,1765983041240,-379.34447673,0.00016973,2]
[398902203,1765983041249,-500.0,0.00016973,2]
[398902204,1765983041258,-500.0,0.00016973,2]
[398902205,1765983041268,-506.79331904,0.00016973,2]
[398902206,1765983041277,-500.0,0.00016973,2]
[398902207,1765983041286,-300.33484235,0.00016973,2]
[398902208,1765983041295,-500.0,0.00016973,2]
[398902209,1765983041304,-181.0,0.00016977,2]
[398902210,1765983041315,-500.0,0.00016986,7]
[398902211,1765983041323,-500.0,0.00016986,7]
[398902212,1765983041334,-500.0,0.00016986,2]
[398902213,1765983041345,-160.57893801,0.0001699,2]
[398902214,1765983041355,-151.0,0.00016995,2]
[398902215,1765983041364,-500.0,0.00016997,2]
[398902216,1765983041375,-151.0,0.00016997,2]
[398902217,1765983041384,-7130.0,0.00016998,2]
[398902218,1765983041393,-196466.5757278,0.00016998,2]
[398902219,1765983041402,-531.5147524,0.00016998,2]
[398902220,1765983041411,-7431.1909123,0.00016998,2]
[398902221,1765983041421,-384.4498032,0.00016998,2]
[398902222,1765983041430,-2477.0636374,0.00016998,2]
[398902223,1765983041439,-3306.290046,0.00016998,2]
[398902224,1765983041449,-500.0,0.00016999,2]
[398902225,1765983041458,-500.0,0.00016999,2]
[398902226,1765983041467,-500.0,0.00016999,2]
[398902227,1765983041477,-500.0,0.00016999,2]
[398902228,1765983041486,-500.0,0.00016999,2]
[398902229,1765983041495,-625.68,0.00016999,2]
[398902230,1765983041504,-500.0,0.00016999,2]
[398902231,1765983041513,-500.0,0.00016999,2]
[398902232,1765983041523,-500.0,0.00016999,2]
[398902233,1765983041534,-366.66358807,0.00016999,2]
[398902234,1765983041543,-209.04054246,0.00016999,2]
[398902235,1765983041554,-500.0,0.00016999,2]
[398902236,1765983041564,-500.0,0.00016999,2]
[398902237,1765983041575,-157.21968123,0.00016999,2]
[398902238,1765983041585,-216407.37254987,0.00017,2]
[398902239,1765983041596,-512881.69675218,0.00017,2]
[398902240,1765983041607,-550.88889433,0.00017,2]
[398902241,1765983041616,-300.0,0.00017,3]
[398902242,1765983041625,-250.0,0.00017,2]
[398902243,1765983041634,-2832.44399,0.00017,2]
[398902244,1765983041643,-151.0,0.00017,2]
[398902245,1765983041652,-151.0,0.00017,2]
[398902246,1765983041661,-1781.42,0.00017002,2]
[398902247,1765983041670,-500.0,0.00017002,6]
[398902248,1765983041679,-1400.0,0.00017016,2]
[398902249,1765983041689,-1400.0,0.00017016,2]
[398902250,1765983041697,-1400.0,0.00017016,2]
[398902251,1765983041708,-1400.0,0.00017016,2]
[398902252,1765983041716,-1400.0,0.00017016,2]
[398902253,1765983041727,-1400.0,0.00017016,2]
[398902254,1765983041736,-1400.0,0.00017016,2]
[398902255,1765983041745,-1400.0,0.00017016,2]
[398902256,1765983041755,-1400.0,0.00017016,2]
[398902257,1765983041766,-1400.0,0.00017016,2]
[398902258,1765983041775,-1400.0,0.00017016,2]
[398902259,1765983041784,-1400.0,0.00017016,2]
[398902260,1765983041795,-1400.0,0.00017016,2]
[398902261,1765983041805,-1400.0,0.00017016,2]
[398902262,1765983041814,-1400.0,0.00017016,2]
[398902263,1765983041823,-1400.0,0.00017016,2]
[398902264,1765983041833,-1400.0,0.00017016,2]
[398902265,1765983041844,-1400.0,0.00017016,2]
[398902266,1765983041853,-1400.0,0.00017016,2]
[398902267,1765983041866,-1400.0,0.00017016,2]
[398902268,1765983041875,-1400.0,0.00017016,2]
[398902269,1765983041884,-153.0,0.00017016,2]
[398902270,1765983041893,-153.0,0.00017016,2]
[398902271,1765983041902,-153.0,0.00017016,2]
[398902272,1765983041912,-153.0,0.00017016,2]
[398902273,1765983041921,-153.0,0.00017016,2]
[398902274,1765983041931,-153.0,0.00017016,2]
[398902275,1765983041941,-153.0,0.00017016,2]
[398902276,1765983041950,-153.0,0.00017016,2]
[398902277,1765983041960,-500.0,0.00017034,2]
[398902278,1765983041971,-473.0,0.00017057,2]
[398902279,1765983041981,-7391.89128467,0.00017067,2]
[398902280,1765983041991,-500.0,0.00017069,2]
[398902281,1765983042000,-181.0,0.00017075,2]
[398902282,1765983042010,-150.0,0.00017088,2]
[398902283,1765983042019,-150.0,0.00017088,2]
[398902284,1765983042028,-150.0,0.00017088,2]
[398902285,1765983042038,-150.0,0.00017088,2]
[398902286,1765983042049,-150.0,0.00017088,2]
[398902287,1765983042058,-150.0,0.00017088,2]
[398902288,1765983042067,-150.0,0.00017088,2]
[398902289,1765983042077,-150.0,0.00017088,2]
[398902290,1765983042086,-912.19,0.00017096,2]
[398902291,1765983042096,-500.0,0.00017096,2]
[398902292,1765983042110,-500.0,0.00017123,7]
[398902293,1765983042122,-500.0,0.00017123,7]
[398902294,1765983042131,-168.0,0.00017151,2]
[398902295,1765983042140,-481.46730423,0.00017153,3]
[398902296,1765983042150,-176.72,0.00017155,2]
[398902297,1765983042159,-151.0,0.0001717,2]
[398902298,1765983042168,-311.1,0.0001717,2]
[398902299,1765983042177,-308.4975971,0.0001717,2]
[398902300,1765983042187,-267.46074303,0.0001717,2]
[398902301,1765983042197,-500.0,0.00017171,2]
[398902302,1765983042206,-181.0,0.00017178,2]
[398902303,1765983042216,-151.0,0.00017189,2]
[398902304,1765983042225,-249.916202,0.00017189,2]
[398902305,1765983042235,-151.0,0.00017189,2]
[398902306,1765983042244,-151.0,0.00017189,2]
[398902307,1765983042253,-151.0,0.00017189,2]
[398902308,1765983042262,-174.253682,0.00017189,2]
[398902309,1765983042274,-174.253682,0.00017189,2]
[398902310,1765983042284,-174.253682,0.00017189,2]
[398902311,1765983042294,-174.253682,0.00017189,2]
[398902312,1765983042303,-151.0,0.00017189,2]
[398902313,1765983042312,-151.0,0.00017189,2]
[398902314,1765983042322,-151.0,0.00017189,2]
[398902315,1765983042333,-1028.796728,0.00017189,2]
[398902316,1765983042343,-1028.796728,0.00017189,2]
[398902317,1765983042352,-1028.796728,0.00017189,2]
[398902318,1765983042366,-1028.796728,0.00017189,2]
[398902319,1765983042375,-151.0,0.00017189,2]
[398902320,1765983042385,-151.0,0.00017189,2]
[398902321,1765983042394,-151.0,0.00017189,2]
[398902322,1765983042403,-151.0,0.00017189,2]
[398902323,1765983042414,-151.0,0.00017189,2]
[398902324,1765983042423,-342.372073,0.00017189,2]
[398902325,1765983042433,-342.372073,0.00017189,2]
[398902326,1765983042443,-342.372073,0.00017189,2]
[398902327,1765983042453,-151.0,0.00017189,2]
[398902328,1765983042462,-342.372073,0.00017189,2]
[398902329,1765983042471,-151.0,0.00017189,2]
[398902330,1765983042480,-371.685034,0.00017189,2]
[398902331,1765983042489,-151.0,0.00017189,2]
[398902332,1765983042498,-371.685034,0.00017189,2]
[398902333,1765983042507,-151.0,0.00017189,2]
[398902334,1765983042516,-371.685034,0.00017189,2]
[398902335,1765983042525,-151.0,0.00017189,2]
[398902336,1765983042534,-371.685034,0.00017189,2]
[398902337,1765983042543,-3453.0,0.00017189,2]
[398902338,1765983042553,-1607.0,0.00017189,2]
[398902339,1765983042561,-1325.0,0.00017189,2]
[398902340,1765983042570,-612.0,0.00017189,2]
[398902341,1765983042580,-713.522,0.00017189,2]
[398902342,1765983042589,-1261.0,0.00017189,2]
[398902343,1765983042598,-911.0,0.00017189,2]
[398902344,1765983042611,-1197.0,0.00017189,2]
[398902345,1765983042620,-250.0,0.00017189,2]
[398902346,1765983042630,-4799.0,0.00017189,2]
[398902347,1765983042639,-1306.0,0.00017189,2]
[398902348,1765983042648,-2435.001,0.00017189,2]
[398902349,1765983042657,-473.0,0.00017194,2]
[398902350,1765983042667,-500.0,0.00017206,2]
[398902351,1765983042676,-4505.0,0.00017217,2]
[398902352,1765983042685,-500.0,0.0001726,7]
[398902353,1765983042694,-500.0,0.0001726,7]
[398902354,1765983042703,-503.84,0.0001726,3]
[398902355,1765983042713,-285.15616289,0.00017305,2]
[398902356,1765983042723,-500.0,0.00017308,2]
[398902357,1765983042732,-500.0,0.00017318,2]
[398902358,1765983042741,-160.25,0.00017321,2]
[398902359,1765983042751,-473.0,0.00017331,2]
[398902360,1765983042760,-500.0,0.00017343,2]
[398902362,1765983042769,-600.0,0.00017344,2]
[398902363,1765983042779,-181.0,0.00017357,2]
[398902364,1765983042788,-181.0,0.00017394,2]
[398902365,1765983042797,-500.0,0.00017397,7]
[398902367,1765983042806,-500.0,0.00017397,7]
[398902369,1765983042815,-150.0,0.00017404,2]
[398902371,1765983042824,-151.12198165,0.00017418,2]
[398902372,1765983042834,-500.0,0.00017425,2]
[398902374,1765983042844,-7391.89128467,0.00017433,2]
[398902375,1765983042856,-595.37131296,0.00017445,2]
[398902376,1765983042865,-2112.0,0.00017445,2]
[398902377,1765983042874,-500.0,0.00017445,2]
[398902378,1765983042883,-166.66,0.00017462,2]
[398902379,1765983042893,-473.0,0.00017468,2]
[398902380,1765983042903,-657.73,0.00017473,2]
[398902381,1765983042911,-499.99999999,0.00017473,2]
[398902382,1765983042920,-181.0,0.00017475,2]
[398902383,1765983042930,-500.0,0.0001748,2]
[398902384,1765983042939,-1000.0,0.00017491,2]
[398902385,1765983042948,-150.0,0.00017499,2]
[398902386,1765983042958,-152.0,0.00017499,2]
[398902387,1765983042966,-200.0,0.00017499,2]
[398902388,1765983042976,-200.0,0.00017499,2]
[398902389,1765983042985,-217.814,0.00017499,2]
[398902391,1765983042994,-150.643,0.00017499,2]
[398902392,1765983043002,-151.676,0.00017499,2]
[398902394,1765983043012,-264.673,0.00017499,2]
[398902397,1765983043021,-206.581,0.00017499,2]
[398902399,1765983043030,-150.318,0.00017499,2]
[398902400,1765983043039,-163.22,0.00017499,2]
[398902402,1765983043048,-150.0,0.00017499,2]
[398902404,1765983043057,-273.368,0.00017499,2]
[398902405,1765983043068,-152.096,0.00017499,2]
[398902406,1765983043077,-152.0,0.00017499,2]
[398902407,1765983043088,-1300.0,0.000175,3]
[398902408,1765983043098,-1000.0,0.00017521,2]
[398902409,1765983043112,-1000.0,0.00017521,2]
[398902410,1765983043122,-1000.0,0.00017521,2]
[398902411,1765983043131,-1000.0,0.00017521,2]
[398902412,1765983043140,-500.0,0.00017534,7]
[398902413,1765983043150,-500.0,0.00017534,7]
[398902414,1765983043159,-150.0,0.00017562,2]
[398902415,1765983043168,-153.26,0.00017576,2]
[398902416,1765983043178,-500.0,0.00017582,2]
[398902417,1765983043187,-166.67,0.00017597,2]
[398902418,1765983043197,-473.0,0.00017605,2]
[398902419,1765983043206,-500.0,0.00017617,2]
[398902420,1765983043216,-600.0,0.00017617,2]
[398902421,1765983043226,-181.0,0.00017617,2]
[398902422,1765983043235,-1745.7280698,0.0001763,2]
[398902423,1765983043244,-500.0,0.00017671,7]
[398902424,1765983043254,-500.0,0.00017671,7]
[398902425,1765983043265,-403.0,0.000177,5]
[398902426,1765983043274,-181.0,0.00017713,2]
[398902427,1765983043284,-500.0,0.00017719,2]
[398902428,1765983043293,-150.0,0.00017721,2]
[398902429,1765983043302,-150.0,0.00017721,2]
[398902430,1765983043312,-500.0,0.00017727,2]
[398902431,1765983043321,-9999.99,0.00017728,2]
[398902433,1765983043333,-11178.49,0.00017728,2]
[398902435,1765983043345,-29204.14,0.00017728,2]
[398902437,1765983043356,-181.0,0.0001773,2]
[398902439,1765983043366,-473.0,0.00017742,2]
[398902440,1765983043375,-628.52488981,0.00017754,2]
[398902442,1765983043384,-181.0,0.00017754,2]
[398902444,1765983043393,-3654.0,0.00017769,2]
[398902446,1765983043403,-7391.89128467,0.000178,2]
[398902447,1765983043413,-500.0,0.00017808,7]
[398902449,1765983043422,-295.81530924,0.00017808,7]
[398902450,1765983043432,-150.0,0.00017808,2]
[398902453,1765983043440,-181.0,0.0001784,2]
[398902455,1765983043450,-419.02647921,0.00017856,2]
[398902457,1765983043459,-473.0,0.00017879,2]
[398902459,1765983043468,-1745.72806979,0.00017884,2]
[398902461,1765983043477,-600.0,0.00017892,2]
[398902463,1765983043486,-160.25,0.00017895,2]
[398902465,1765983043495,-10000.0,0.000179,2]
[398902467,1765983043504,-151.12198165,0.00017915,2]
[398902469,1765983043513,-866.0,0.00017923,2]
[398902470,1765983043522,-357.44474318,0.00017945,7]
[398902471,1765983043531,-150.0,0.00017945,2]
[398902472,1765983043539,-166.66,0.00017971,2]
[398902473,1765983043549,-617.40005154,0.00017993,2]
[398902474,1765983043559,-2112.0,0.00017993,2]
[398902475,1765983043569,-151.0,0.00017997,2]
[398902476,1765983043578,-151.0,0.00017997,2]
[398902477,1765983043588,-1781.42,0.00017999,2]
[398902478,1765983043597,-500.0,0.00017999,7]
[398902479,1765983043609,-11498.44893353,0.00017999,2]
[398902480,1765983043618,-200.77285261,0.00017999,2]
[398902481,1765983043627,-688.94394477,0.00017999,2]
[398902482,1765983043637,-500.0,0.00017999,2]
[398902483,1765983043647,-299.31144329,0.00017999,2]
[398902484,1765983043657,-971225.63332219,0.00018,2]
[398902485,1765983043667,-3528.58960676,0.00018,2]
[398902486,1765983043676,-2000.0,0.00018,2]
[398902487,1765983043686,-16350.82229886,0.00018,2]
[398902488,1765983043696,-102025.71622372,0.00018,2]
[398902489,1765983043706,-12325.12199996,0.00018,2]
[398902490,1765983043717,-151.0,0.00018,2]
[398902491,1765983043726,-151.0,0.00018,2]
[398902492,1765983043736,-151.0,0.00018,2]
[398902493,1765983043745,-151.0,0.00018,2]
[398902494,1765983043755,-151.0,0.00018,2]
[398902495,1765983043765,-151.0,0.00018,2]
[398902496,1765983043775,-151.0,0.00018,2]
[398902497,1765983043784,-151.0,0.00018,2]
[398902498,1765983043793,-151.0,0.00018,2]
[398902499,1765983043803,-174.253682,0.00018,2]
[398902500,1765983043812,-174.253682,0.00018,2]
[398902501,1765983043822,-174.253682,0.00018,2]
[398902502,1765983043832,-174.253682,0.00018,2]
[398902503,1765983043841,-151.0,0.00018,2]
[398902504,1765983043852,-151.0,0.00018,2]
[398902505,1765983043863,-151.0,0.00018,2]
[398902506,1765983043872,-205.551868,0.00018,2]
[398902507,1765983043882,-1028.796728,0.00018,2]
[398902508,1765983043891,-1028.796728,0.00018,2]
[398902509,1765983043901,-1028.796728,0.00018,2]
[398902510,1765983043910,-1028.796728,0.00018,2]
[398902511,1765983043919,-151.0,0.00018,2]
[398902512,1765983043928,-151.0,0.00018,2]
[398902513,1765983043938,-151.0,0.00018,2]
[398902514,1765983043947,-151.0,0.00018,2]
[398902515,1765983043956,-151.0,0.00018,2]
[398902516,1765983043966,-342.372073,0.00018,2]
[398902517,1765983043975,-342.372073,0.00018,2]
[398902518,1765983043985,-342.372073,0.00018,2]
[398902519,1765983043994,-151.0,0.00018,2]
[398902520,1765983044004,-342.372073,0.00018,2]
[398902521,1765983044013,-151.0,0.00018,2]
[398902522,1765983044022,-371.685034,0.00018,2]
[398902523,1765983044032,-151.0,0.00018,2]
[398902524,1765983044041,-371.685034,0.00018,2]
[398902525,1765983044050,-151.0,0.00018,2]
[398902526,1765983044061,-371.685034,0.00018,2]
[398902527,1765983044072,-151.0,0.00018,2]
[398902528,1765983044083,-371.685034,0.00018,2]
[398902529,1765983044095,-2000.0,0.0001801,2]
[398902530,1765983044106,-176.72,0.00018012,2]
[398902531,1765983044117,-473.0,0.00018016,2]
[398902532,1765983044126,-1781.42,0.00018019,2]
[398902533,1765983044137,-500.0,0.00018019,8]
[398902534,1765983044146,-2000.0,0.0001802,2]
[398902535,1765983044156,-2280.954756,0.0001803,2]
[398902536,1765983044165,-150.0,0.00018037,2]
[398902537,1765983044176,-150.0,0.00018037,2]
[398902538,1765983044187,-150.0,0.00018037,2]
[398902539,1765983044197,-150.0,0.00018037,2]
[398902540,1765983044208,-900.0,0.00018068,2]
[398902541,1765983044219,-1500.0,0.00018068,2]
[398902542,1765983044231,-1500.0,0.00018068,2]
[398902543,1765983044243,-1241.18450961,0.00018068,2]
[398902544,1765983044254,-1500.0,0.00018068,2]
[398902545,1765983044263,-150.0,0.00018082,2]
[398902546,1765983044273,-1000.0,0.00018082,2]
[398902547,1765983044283,-1745.72806979,0.00018138,2]
[398902548,1765983044293,-473.0,0.00018153,2]
[398902549,1765983044303,-7391.89128467,0.00018167,2]
[398902550,1765983044313,-285.15616289,0.00018208,2]
[398902551,1765983044324,-150.0,0.00018219,2]
[398902552,1765983044334,-153.26,0.00018232,2]
[398902553,1765983044348,-473.0,0.0001829,2]
[398902554,1765983044361,-159.92,0.0001831,2]
[398902555,1765983044372,-200.0,0.00018319,2]
[398902556,1765983044383,-150.0,0.00018353,2]
[398902557,1765983044395,-150.0,0.00018353,2]
[398902558,1765983044410,-259.7561186,0.00018356,2]
[398902559,1765983044422,-658.77,0.00018386,2]
[398902560,1765983044431,-703.91,0.00018386,2]
[398902561,1765983044442,-1317.54,0.00018386,2]
[398902562,1765983044451,-1745.72806979,0.00018392,2]
[398902563,1765983044461,-151.12198165,0.00018413,2]
[398902564,1765983044471,-473.0,0.00018427,2]
[398902565,1765983044481,-1600.0,0.00018432,2]
[398902566,1765983044491,-600.0,0.0001844,2]
[398902567,1765983044500,-166.67,0.00018469,2]
[398902568,1765983044510,-3654.0,0.00018483,2]
[398902569,1765983044520,-2351.0,0.00018499,2]
[398902570,1765983044529,-1447.0,0.000185,4]
[398902571,1765983044539,-150.0,0.00018512,2]
[398902572,1765983044548,-250.0,0.00018524,2]
[398902573,1765983044557,-7391.89128467,0.00018533,2]
[398902574,1765983044567,-322.6107,0.00018539,2]
[398902575,1765983044576,-376.36040712,0.00018539,2]
[398902576,1765983044585,-640.24385345,0.00018541,2]
[398902577,1765983044595,-2177.30233005,0.00018541,2]
[398902578,1765983044604,-587.0,0.00018546,2]
[398902579,1765983044620,-587.0,0.00018546,2]
[398902580,1765983044629,-473.0,0.00018564,2]
[398902581,1765983044639,-152.0,0.0001861,3]
[398902582,1765983044649,-160.25,0.00018614,2]
[398902583,1765983044659,-2000.0,0.00018616,2]
[398902584,1765983044668,-184.93187764,0.00018616,2]
[398902585,1765983044678,-2000.0,0.00018616,2]
[398902586,1765983044687,-1745.72806979,0.00018646,2]
[398902587,1765983044697,-150.0,0.0001867,2]
[398902588,1765983044707,-473.64616008,0.00018701,2]
[398902589,1765983044716,-531.5147524,0.00018748,2]
[398902590,1765983044726,-7431.1909123,0.00018748,2]
[398902591,1765983044736,-2477.0636374,0.00018748,2]
[398902592,1765983044747,-160.25,0.00018759,2]
[398902593,1765983044756,-1000.0,0.0001876,2]
[398902594,1765983045048,-500.0,0.00018773,2]
[398902595,1765983045057,-150.0,0.00018773,2]
[398902596,1765983045066,-500.0,0.00018773,2]
[398902597,1765983045076,-500.0,0.00018773,2]
[398902598,1765983045085,-500.0,0.00018773,2]
[398902599,1765983045095,-500.0,0.00018773,2]
[398902600,1765983045104,-500.0,0.00018773,2]
[398902601,1765983045115,-500.0,0.00018773,2]
[398902602,1765983045124,-500.0,0.00018773,2]
[398902603,1765983045134,-500.0,0.00018773,2]
[398902604,1765983045143,-500.0,0.00018773,2]
[398902605,1765983045153,-500.0,0.00018773,2]
[398902606,1765983045162,-500.0,0.00018773,2]
[398902607,1765983045171,-500.0,0.00018773,2]
[398902608,1765983045181,-500.0,0.00018773,2]
[398902609,1765983045191,-162.15907528,0.00018773,2]
[398902610,1765983045200,-500.0,0.00018773,2]
[398902611,1765983045210,-500.0,0.00018773,2]
[398902612,1765983045220,-178.93750453,0.00018773,2]
[398902613,1765983045230,-500.0,0.00018773,2]
[398902614,1765983045239,-500.0,0.00018773,2]
[398902615,1765983045249,-500.0,0.00018773,2]
[398902616,1765983045258,-500.0,0.00018773,2]
[398902617,1765983045268,-500.0,0.00018773,2]
[398902618,1765983045277,-500.0,0.00018773,2]
[398902619,1765983045287,-500.0,0.00018773,2]
[398902620,1765983045297,-500.0,0.00018773,2]
[398902621,1765983045307,-500.0,0.00018773,2]
[398902622,1765983045318,-500.0,0.00018773,2]
[398902623,1765983045328,-569.87602686,0.00018773,2]
[398902624,1765983045342,-162.27451964,0.00018773,2]
[398902625,1765983045351,-500.0,0.00018773,2]
[398902626,1765983045363,-500.0,0.00018773,2]
[398902627,1765983045375,-500.0,0.00018773,2]
[398902628,1765983045385,-500.0,0.00018773,2]
[398902629,1765983045396,-500.0,0.00018773,2]
[398902630,1765983045407,-500.0,0.00018773,2]
[398902631,1765983045419,-500.0,0.00018773,2]
[398902632,1765983045429,-516.08920416,0.00018773,2]
[398902633,1765983045439,-500.0,0.00018773,2]
[398902634,1765983045450,-500.0,0.00018773,2]
[398902635,1765983045463,-500.0,0.00018773,2]
[398902636,1765983045473,-500.0,0.00018773,2]
[398902637,1765983045484,-500.0,0.00018773,2]
[398902638,1765983045495,-500.0,0.00018773,2]
[398902639,1765983045504,-500.0,0.00018773,2]
[398902640,1765983045514,-500.0,0.00018773,2]
[398902641,1765983045524,-500.0,0.00018773,2]
[398902642,1765983045534,-500.0,0.00018773,2]
[398902643,1765983045545,-500.0,0.00018773,2]
[398902644,1765983045554,-500.0,0.00018773,2]
[398902645,1765983045564,-500.0,0.00018773,2]
[398902646,1765983045575,-150.91,0.000188,2]
[398902647,1765983045586,-150.91,0.000188,2]
[398902648,1765983045597,-150.91,0.000188,2]
[398902649,1765983045609,-150.91,0.000188,2]
[398902650,1765983045619,-150.91,0.000188,2]
[398902651,1765983045629,-150.91,0.000188,2]
[398902652,1765983045638,-555.77,0.00018825,2]
[398902653,1765983045648,-176.72,0.0001887,2]
[398902654,1765983045659,-163.0,0.000189,2]
[398902655,1765983045669,-163.0,0.000189,2]
[398902656,1765983045679,-163.0,0.000189,3]
[398902657,1765983045690,-163.0,0.000189,3]
[398902658,1765983045700,-7391.89128467,0.000189,2]
[398902659,1765983045710,-784.8449496,0.000189,2]
[398902660,1765983045721,-1745.72806979,0.000189,2]
[398902661,1765983045731,-2855.15191448,0.000189,2]
[398902662,1765983045741,-150.0,0.00018904,5]
[398902663,1765983045751,-270.62798976,0.00018904,5]
[398902664,1765983045761,-3457.53642493,0.00018904,2]
[398902665,1765983045770,-151.12198165,0.0001891,2]
[398902666,1765983045779,-152.0,0.00018943,4]
[398902667,1765983045789,-153.26,0.00018958,2]
[398902668,1765983045799,-500.0,0.0001897,2]
[398902669,1765983045809,-163.30713897,0.00018973,2]
[398902670,1765983045819,-150.0,0.00018973,2]
[398902671,1765983045828,-187.73749217,0.00018986,2]
[398902672,1765983045838,-150.0,0.00018986,2]
[398902673,1765983045848,-150.0,0.00018986,2]
[398902674,1765983045859,-196.84735632,0.00018986,2]
[398902675,1765983045869,-250.72416972,0.00018986,2]
[398902676,1765983045878,-150.0,0.00018986,2]
[398902677,1765983045888,-600.0,0.00018988,2]
[398902678,1765983045898,-870.0,0.0001899,2]
[398902679,1765983045908,-160.57893801,0.0001899,2]
[398902680,1765983045917,-160.57893801,0.0001899,2]
[398902681,1765983045927,-1781.42,0.00018999,2]
[398902682,1765983045936,-1781.42,0.00018999,2]
[398902683,1765983045946,-1781.42,0.00018999,2]
[398902684,1765983045955,-1781.42,0.00018999,2]
[398902685,1765983045965,-1781.42,0.00018999,2]
[398902686,1765983045975,-1781.42,0.00018999,2]
[398902687,1765983045985,-1781.42,0.00018999,2]
[398902688,1765983045995,-1781.42,0.00018999,2]
[398902689,1765983046004,-1781.42,0.00018999,2]
[398902690,1765983046014,-1781.42,0.00018999,2]
[398902691,1765983046024,-1781.42,0.00018999,2]
[398902692,1765983046033,-1781.42,0.00018999,2]
[398902693,1765983046043,-1781.42,0.00018999,2]
[398902694,1765983046053,-1781.42,0.00018999,2]
[398902695,1765983046064,-1781.42,0.00018999,2]
[398902696,1765983046074,-1781.42,0.00018999,2]
[398902697,1765983046084,-1781.54319516,0.00018999,2]
[398902698,1765983046093,-468.97910059,0.00018999,2]
[398902699,1765983046104,-500.0,0.00018999,2]
[398902701,1765983046116,-500.0,0.00018999,2]
[398902703,1765983046125,-500.0,0.00018999,9]
[398902705,1765983046136,-500.0,0.00018999,10]
[398902707,1765983046145,-514.58,0.00018999,2]
[398902709,1765983046156,-500.0,0.00018999,2]
[398902711,1765983046166,-759990.77122357,0.00019,2]
[398902712,1765983046177,-433202.1448143,0.00019,2]